bitfinex-derivatives/quotes_SOLF0:USTF0_20250716
["timestamp","ask_amount","ask_price","bid_price","bid_amount"]
[1752630781659,0.03944347,164.26,164.21,1.348e-05]
[1752630782662,6.088,164.24,164.21,1.348e-05]
[1752630782869,0.03944347,164.26,164.21,1.348e-05]
[1752630783364,6.0875,164.25,164.22,6.0883]
[1752630783669,0.03944347,164.26,164.22,3.26883315]
[1752630784469,6.0874,164.25,164.22,9.35713315]
[1752630785462,0.03944347,164.26,164.21,1.348e-05]
[1752630785660,3.26883315,164.25,164.21,1.348e-05]
[1752630786660,6.0885,164.22,164.21,1.348e-05]
[1752630793676,6.0882,164.23,164.21,1.348e-05]
[1752630794884,6.0885,164.22,164.21,1.348e-05]
[1752630802995,191.0,164.24,164.21,1.348e-05]
[1752630803896,178.17944347,164.26,164.21,3.26884663]
[1752630804098,0.03944347,164.26,164.21,3.26884663]
[1752630804297,0.03944347,164.26,164.23,9.35673315]
[1752630804497,0.03944347,164.26,164.23,3.26883315]
[1752630804700,6.0874,164.25,164.23,3.26883315]
[1752630805600,0.03944347,164.26,164.23,3.26883315]
[1752630806100,6.0874,164.25,164.23,3.26883315]
[1752630806300,0.03944347,164.26,164.23,3.26883315]
[1752630806701,0.03944347,164.26,164.21,3.26884663]
[1752630807002,6.0885,164.22,164.21,1.348e-05]
[1752630807500,9.35733315,164.22,164.21,1.348e-05]
[1752630810098,6.0885,164.22,164.21,1.348e-05]
[1752630811004,191.0,164.24,164.21,1.348e-05]
[1752630811502,6.0881,164.23,164.21,1.348e-05]
[1752630812503,6.0885,164.22,164.21,1.348e-05]
[1752630812703,191.0,164.24,164.21,1.348e-05]
[1752630813003,6.0885,164.22,164.21,1.348e-05]
[1752630817007,184.0085,164.22,164.21,1.348e-05]
[1752630819305,6.0885,164.22,164.21,1.348e-05]
[1752630825213,181.10883315,164.23,164.11,3.26883315]
[1752630825414,3.26883315,164.2,164.11,3.26883315]
[1752630825713,177.76,164.19,164.11,3.26883315]
[1752630825909,6.0904,164.17,164.13,6.0917]
[1752630826105,6.0904,164.17,164.11,3.26883315]
[1752630826510,6.13310685,164.17,164.11,3.26883315]
[1752630826713,6.13310685,164.17,164.13,6.0915]
[1752630827216,6.13310685,164.17,164.14,6.0913]
[1752630828715,0.04270685,164.17,164.14,3.26883315]
[1752630829013,0.04270685,164.17,164.16,3.26883315]
[1752630829417,0.04270685,164.17,164.16,9.35953315]
[1752630830915,0.04270685,164.17,164.16,6.0907]
[1752630831118,0.04270685,164.17,164.16,9.35953315]
[1752630831317,13.43326991,164.25,164.16,3.26883315]
[1752630831616,191.0,164.24,164.18,3.26883315]
[1752630832215,6.0887,164.22,164.18,9.35853315]
[1752630832821,6.0887,164.22,164.19,6.0895]
[1752630834822,6.0887,164.22,164.18,9.35873315]
[1752630837425,0.04385295,164.23,164.2,6.0892]
[1752630840127,0.04385295,164.23,164.19,3.26883315]
[1752630841026,6.13225295,164.23,164.19,9.35833315]
[1752630842228,0.04385295,164.23,164.2,6.0893]
[1752630842429,0.04385295,164.23,164.19,3.26883315]
[1752630842831,6.13215295,164.23,164.19,9.35833315]
[1752630844130,6.0885,164.22,164.19,3.26883315]
[1752630845538,0.04385295,164.23,164.17,3.26883315]
[1752630846031,10.16443676,164.24,164.17,9.35903315]
[1752630846032,6.0891,164.21,164.17,9.35903315]
[1752630846337,13.47699743,164.22,164.14,3.26883315]
[1752630846538,3.26883315,164.2,164.12,3.26883315]
[1752630847039,6.13485256,164.18,164.14,6.0913]
[1752630848544,0.04465256,164.18,164.15,6.0911]
[1752630849443,6.13465256,164.18,164.15,6.0911]
[1752630849943,6.13465256,164.18,164.14,3.26883315]
[1752630849944,0.04465256,164.18,164.16,6.0906]
[1752630850345,0.04465256,164.18,164.14,3.26883315]
[1752630850543,6.13465256,164.18,164.15,6.0909]
[1752630851545,0.04465256,164.18,164.16,6.0907]
[1752630852440,0.04465256,164.18,164.15,6.091]
[1752630852638,6.13475256,164.18,164.15,6.091]
[1752630852837,0.04465256,164.18,164.12,3.26883315]
[1752630853038,0.04465256,164.18,164.13,6.0917]
[1752630853237,6.0905,164.17,164.13,6.0917]
[1752630854846,6.13475256,164.18,164.14,6.0915]
[1752630856951,6.0904,164.17,164.14,6.0915]
[1752630857150,6.0904,164.17,164.13,6.0918]
[1752630858347,6.13495256,164.18,164.14,6.0913]
[1752630858849,0.04465256,164.18,164.14,6.0913]
[1752630859450,6.13485256,164.18,164.14,3.26883315]
[1752630859951,6.13485256,164.18,164.14,9.36013315]
[1752630861054,6.13485256,164.18,164.14,6.0913]
[1752630862152,6.13485256,164.18,164.13,9.36053315]
[1752630862753,6.0905,164.17,164.13,9.36053315]
[1752630864155,6.13485256,164.18,164.14,6.0914]
[1752630866450,0.04465256,164.18,164.13,3.26883315]
[1752630866656,6.0904,164.17,164.13,9.36053315]
[1752630869556,6.13475256,164.18,164.14,6.0914]
[1752630869954,6.13475256,164.18,164.13,3.26883315]
[1752630870154,6.13475256,164.18,164.14,6.0913]
[1752630870856,6.0904,164.17,164.14,6.0913]
[1752630871257,0.04465256,164.18,164.13,9.36053315]
[1752630872055,6.0905,164.17,164.13,9.36053315]
[1752630873865,6.13475256,164.18,164.14,6.0912]
[1752630874560,6.0904,164.17,164.14,6.0912]
[1752630875360,6.0904,164.17,164.13,9.36053315]
[1752630877661,6.0909,164.16,164.13,9.36053315]
[1752630877858,6.0909,164.16,164.12,6.0921]
[1752630878060,0.04465256,164.18,164.11,3.26883315]
[1752630878261,6.0913,164.15,164.11,9.36133315]
[1752630878456,13.43326991,164.19,164.11,3.26883315]
[1752630878759,0.04691631,164.16,164.11,3.26883315]
[1752630879063,6.13791631,164.16,164.12,6.0921]
[1752630880962,0.04691631,164.16,164.13,6.0918]
[1752630882163,6.13771631,164.16,164.12,6.092]
[1752630882358,6.13771631,164.16,164.12,9.36083315]
[1752630883066,6.0911,164.15,164.12,6.092]
[1752630883266,6.0911,164.15,164.11,9.36133315]
[1752630884567,6.0911,164.15,164.12,6.0922]
[1752630888180,6.0917,164.14,164.11,9.36133315]
[1752630889179,0.04691631,164.16,164.1,183.6529]
[1752630889573,0.04691631,164.16,164.09,3.26883315]
[1752630889574,10.21135307,164.16,164.08,3.26883315]
[1752630889772,6.0924,164.12,164.08,9.36223315]
[1752630889973,6.0924,164.12,164.08,3.26883315]
[1752630890171,10.16443676,164.16,164.08,3.26883315]
[1752630890372,6.092,164.13,164.09,6.0931]
[1752630890575,0.04283114,164.12,164.09,6.0931]
[1752630890875,0.04283114,164.12,164.08,3.26883315]
[1752630891081,0.04283114,164.12,164.09,6.0933]
[1752630891981,6.13503114,164.12,164.09,6.0933]
[1752630892476,0.04283114,164.12,164.09,6.0933]
[1752630893794,0.04283114,164.12,164.1,3.26883315]
[1752630894179,201.16443676,164.19,164.09,177.66]
[1752630894380,201.16443676,164.19,164.14,3.26883315]
[1752630895488,201.16443676,164.19,164.15,0.04315753]
[1752630895686,191.0,164.19,164.15,0.04315753]
[1752630896085,201.16443676,164.19,164.15,0.04315753]
[1752630896390,6.0906,164.17,164.15,0.04315753]
[1752630896889,6.0907,164.16,164.15,0.04315753]
[1752630904390,6.0905,164.17,164.15,0.04315753]
[1752630904593,191.0,164.19,164.15,0.04315753]
[1752630905793,6.0907,164.16,164.15,0.04315753]
[1752630907793,16.25513676,164.16,164.15,0.04315753]
[1752630911699,6.0907,164.16,164.15,0.04315753]
[1752630916501,3.26883315,164.16,164.09,6.0932]
[1752630916799,13.47673185,164.16,164.09,6.0932]
[1752630917003,6.0922,164.12,164.09,6.0932]
[1752630917203,13.47673185,164.16,164.1,6.0929]
[1752630917607,0.0444541,164.15,164.1,6.0929]
[1752630919109,6.0919,164.13,164.1,6.0929]
[1752630920408,0.0444541,164.15,164.1,6.0929]
[1752630920609,0.0444541,164.15,164.1,9.36173315]
[1752630920806,0.0444541,164.15,164.09,6.0933]
[1752630921109,0.0444541,164.15,164.09,9.36213315]
[1752630921308,6.0924,164.12,164.09,3.26883315]
[1752630921508,6.0924,164.12,164.07,9.36273315]
[1752630922209,0.0429265,164.11,164.07,9.36273315]
[1752630922411,6.1355265,164.11,164.07,6.0939]
[1752630922606,0.0429265,164.11,164.07,6.0939]
[1752630922802,0.0429265,164.11,164.06,9.36313315]
[1752630923007,6.0932,164.1,164.06,3.26883315]
[1752630923310,0.0429265,164.11,164.04,3.26883315]
[1752630923913,0.0429265,164.11,164.05,6.0947]
[1752630925314,6.0935,164.09,164.05,6.0947]
[1752630925809,6.0931,164.1,164.06,6.0944]
[1752630928513,6.0934,164.09,164.05,6.0946]
[1752630930013,0.0429265,164.11,164.06,3.26883315]
[1752630930414,191.0,164.13,164.06,3.26883315]
[1752630930716,0.04277967,164.1,164.06,3.26883315]
[1752630930915,0.04277967,164.1,164.08,3.26883315]
[1752630931416,6.0913,164.15,164.08,3.26883315]
[1752630931711,6.0913,164.15,164.11,3.26883315]
[1752630931915,6.0913,164.15,164.11,9.36133315]
[1752630932317,6.0915,164.14,164.11,3.26883315]
[1752630932715,6.0915,164.14,164.11,3.31410852]
[1752630934114,6.0912,164.15,164.11,3.31410852]
[1752630936017,6.0915,164.14,164.11,3.31410852]
[1752630937817,3.26883315,164.15,164.11,0.04527537]
[1752630938219,6.0922,164.12,164.11,0.04527537]
[1752630939822,6.0922,164.12,163.93,3.27453789]
[1752630939823,12.64907578,164.12,163.93,3.27453789]
[1752630940121,3.27453789,164.02,163.93,3.27453789]
[1752630940327,3.27453789,164.02,163.9,5.12084815]
[1752630940328,3.27453789,164.02,163.96,6.098]
[1752630940527,3.27453789,164.02,163.95,3.27453789]
[1752630940725,3.27453789,164.04,163.95,3.27453789]
[1752630940922,0.04430525,164.0,163.96,3.27407745]
[1752630941127,0.04430525,164.0,163.94,1.06123445]
[1752630941326,0.04430525,164.0,163.95,3.27407745]
[1752630941526,0.04430525,164.0,163.96,6.0978]
[1752630942728,0.04430525,164.0,163.95,6.0984]
[1752630943028,3.3183827,164.0,163.92,3.27407745]
[1752630943224,6.0972,163.99,163.94,6.0986]
[1752630943424,3.27407745,164.0,163.92,4.33548992]
[1752630943623,3.27407745,163.98,163.85,182.74968515]
[1752630943820,3.27407745,163.98,163.91,6.0998]
[1752630943821,3.27407745,163.96,163.91,6.0998]
[1752630944326,9.37237745,163.96,163.91,6.0998]
[1752630944628,0.04053631,163.95,163.9,3.27407745]
[1752630945131,177.64,164.06,163.9,3.27407745]
[1752630945327,0.03935712,163.94,163.9,3.27407745]
[1752630945518,0.03935712,163.94,163.88,1.06163913]
[1752630945829,3.27407745,163.98,163.92,6.0994]
[1752630946028,0.0422259,163.93,163.9,3.27407745]
[1752630946327,3.27407745,163.98,163.91,6.0999]
[1752630946521,6.0982,163.96,163.91,6.0999]
[1752630946719,0.04589613,163.93,163.89,3.27407745]
[1752630947130,0.04589613,163.93,163.92,6.0996]
[1752630947934,3.27407745,164.0,163.94,6.0987]
[1752630948131,3.27407745,164.0,163.91,0.04491264]
[1752630948429,3.27407745,164.0,163.88,1.06163913]
[1752630948430,3.27407745,164.0,163.92,3.27407745]
[1752630949129,6.0976,163.98,163.93,6.0991]
[1752630949332,6.0976,163.98,163.94,0.0396014]
[1752630949833,3.27407745,164.0,163.94,0.0396014]
[1752630950325,6.0977,163.98,163.94,0.0396014]
[1752630951426,6.0972,163.99,163.94,6.1385014]
[1752630951623,3.27407745,164.01,163.94,0.0396014]
[1752630951822,194.27407745,164.02,163.94,0.0396014]
[1752630952026,6.0965,164.01,163.96,6.0979]
[1752630952329,194.27407745,164.02,163.96,6.0979]
[1752630952830,6.0964,164.01,163.96,6.0979]
[1752630953030,194.27407745,164.02,163.97,0.03954942]
[1752630953328,6.0967,164.0,163.97,0.03954942]
[1752630953528,194.27407745,164.02,163.97,6.13734942]
[1752630953731,6.0965,164.01,163.97,6.13734942]
[1752630954131,194.27407745,164.02,163.97,0.03954942]
[1752630954730,194.27407745,164.02,163.97,6.13714942]
[1752630954930,194.27407745,164.02,163.97,0.03954942]
[1752630956130,6.0967,164.0,163.97,0.03954942]
[1752630957834,191.0,164.02,163.97,3.31362687]
[1752630958435,197.0962,164.02,163.98,6.0972]
[1752630958832,197.0962,164.02,163.97,3.31362687]
[1752630959136,6.0963,164.01,163.97,3.31362687]
[1752630959532,6.0963,164.01,163.97,9.41132687]
[1752630959838,6.0963,164.01,163.97,3.31362687]
[1752630960635,191.0,164.05,163.99,3.27407745]
[1752630960931,0.0408989,164.01,163.99,3.27407745]
[1752630961136,6.1372989,164.01,163.99,3.27407745]
[1752630961340,0.0408989,164.01,163.98,0.0410015]
[1752630961738,6.0968,164.0,163.98,0.0410015]
[1752630961942,0.0408989,164.01,163.98,0.0410015]
[1752630962836,0.0408989,164.01,163.98,6.1383015]
[1752630964739,0.0408989,164.01,163.98,0.0410015]
[1752630965337,6.0969,164.0,163.98,0.0410015]
[1752630966441,6.1373989,164.01,163.98,0.0410015]
[1752630967140,6.0967,164.0,163.98,0.0410015]
[1752630968043,6.097,163.99,163.95,6.0984]
[1752630968243,3.27407745,163.99,163.95,6.0984]
[1752630969245,3.27407745,163.99,163.94,6.0988]
[1752630969447,3.27407745,163.99,163.91,3.27407745]
[1752630970041,0.04131673,163.97,163.91,3.27407745]
[1752630971142,6.13911673,163.97,163.93,6.0993]
[1752630971344,0.04131673,163.97,163.93,6.0993]
[1752630972940,6.13911673,163.97,163.91,3.27407745]
[1752630973344,0.04131673,163.97,163.91,3.27407745]
[1752630973545,6.0984,163.96,163.89,3.27407745]
[1752630973946,6.0984,163.96,163.92,6.0996]
[1752630974147,9.41329418,163.97,163.92,6.0996]
[1752630974649,0.04131673,163.97,163.91,3.27407745]
[1752630974848,0.04131673,163.97,163.93,3.27407745]
[1752630975750,0.04131673,163.97,163.94,6.0987]
[1752630975947,0.04131673,163.97,163.91,3.27407745]
[1752630976552,6.13941673,163.97,163.92,6.0995]
[1752630976945,6.13941673,163.97,163.91,3.27407745]
[1752630977250,6.13941673,163.97,163.93,6.0991]
[1752630978852,6.0982,163.96,163.93,6.0991]
[1752630979055,6.0982,163.96,163.92,6.0995]
[1752630979749,6.14107427,163.96,163.92,6.0995]
[1752630980056,0.04287427,163.96,163.93,6.0993]
[1752630980652,6.14107427,163.96,163.92,6.0995]
[1752630980854,0.04287427,163.96,163.92,6.0995]
[1752630981050,0.04287427,163.96,163.89,3.27407745]
[1752630981250,6.0986,163.95,163.91,6.0998]
[1752630982850,3.27407745,163.95,163.86,181.05407745]
[1752630983046,0.04287427,163.96,163.86,181.05407745]
[1752630983252,6.0994,163.93,163.88,6.101]
[1752630983654,6.14365965,163.93,163.88,6.101]
[1752630983847,0.04425965,163.93,163.89,6.1007]
[1752630984053,0.04425965,163.93,163.87,3.27407745]
[1752630984748,6.14355965,163.93,163.89,6.1006]
[1752630985452,6.0997,163.92,163.88,6.101]
[1752630986153,9.4178371,163.93,163.88,6.1011]
[1752630986749,9.4178371,163.93,163.89,6.1007]
[1752630986954,3.3183371,163.93,163.89,6.1007]
[1752630987254,0.04425965,163.93,163.89,6.1007]
[1752630987553,6.14375965,163.93,163.89,6.1007]
[1752630988456,0.04425965,163.93,163.89,6.1007]
[1752630989155,6.14375965,163.93,163.89,6.1007]
[1752630989347,0.04425965,163.93,163.86,181.05407745]
[1752630989548,0.04425965,163.93,163.88,3.27407745]
[1752630990256,0.04425965,163.93,163.91,6.0997]
[1752630991257,0.04425965,163.93,163.92,6.0997]
[1752630991754,0.04425965,163.93,163.91,6.0999]
[1752630992655,0.04425965,163.93,163.92,6.0997]
[1752630993856,191.0,163.97,163.94,6.0987]
[1752630994258,197.0978,163.97,163.92,3.27407745]
[1752630994859,197.0978,163.97,163.93,6.0991]
[1752630995854,6.0982,163.96,163.93,6.0991]
[1752630997158,6.0982,163.96,163.92,3.27407745]
[1752630997159,191.0,164.0,163.95,3.27407745]
[1752630997362,191.0,164.0,163.97,3.27407745]
[1752630997558,191.0,164.0,163.99,3.27407745]
[1752630997861,191.0,164.05,163.99,3.27407745]
[1752630998064,191.0,164.05,164.01,3.27407745]
[1752630998357,191.0,164.05,163.97,0.04669831]
[1752630998358,191.0,164.08,164.03,9.36947745]
[1752630998762,191.0,164.08,164.04,0.0468715]
[1752630999263,191.0,164.08,164.04,9.41604895]
[1752630999858,197.0938,164.08,164.04,9.41604895]
[1752631000056,191.0,164.08,164.04,0.0468715]
[1752631001261,6.0943,164.07,164.04,0.0468715]
[1752631002368,3.27407745,164.07,164.04,0.0468715]
[1752631002559,3.27407745,164.05,163.97,3.27407745]
[1752631002764,6.0954,164.04,164.0,6.0967]
[1752631003966,6.13921378,164.04,164.0,6.0967]
[1752631005266,6.13921378,164.04,164.01,6.0963]
[1752631005761,0.04381378,164.04,164.02,6.0959]
[1752631005968,0.04381378,164.04,163.99,3.27407745]
[1752631006663,0.04381378,164.04,164.01,3.27407745]
[1752631006962,0.04381378,164.04,164.03,6.0956]
[1752631007169,177.84,164.06,164.03,6.0956]
[1752631007364,0.04192218,164.04,164.03,6.0956]
[1752631009568,0.04192218,164.04,164.02,9.36987745]
[1752631009768,0.04192218,164.04,164.02,6.0958]
[1752631011372,0.04192218,164.04,164.03,6.0956]
[1752631012375,191.0,164.07,164.06,6.0945]
[1752631012571,6.0934,164.09,164.06,9.36857745]
[1752631012771,368.84,164.12,164.06,9.36857745]
[1752631013073,368.84,164.12,164.06,3.27407745]
[1752631013673,368.84,164.12,164.07,0.04557896]
[1752631014071,374.9324,164.12,164.09,6.0933]
[1752631014476,374.9324,164.12,164.07,0.04557896]
[1752631015178,191.0,164.12,164.1,6.0929]
[1752631015372,181.15407745,164.15,164.1,6.0929]
[1752631016069,181.15407745,164.15,164.11,0.04323368]
[1752631016474,177.88,164.15,164.11,0.04323368]
[1752631016674,181.15407745,164.15,164.11,0.04323368]
[1752631017274,6.0921,164.13,164.11,0.04323368]
[1752631018180,6.0922,164.12,164.11,0.04323368]
[1752631019481,191.0,164.18,164.11,0.04323368]
[1752631019676,191.0,164.17,164.11,0.04323368]
[1752631019870,191.0,164.17,164.1,3.27407745]
[1752631020077,191.0,164.17,164.11,6.0926]
[1752631020274,191.0,164.17,164.12,0.04486267]
[1752631021274,3.27407745,164.16,164.12,0.04486267]
[1752631021575,3.27407745,164.14,164.12,0.04486267]
[1752631021776,6.0919,164.13,164.12,0.04486267]
[1752631022169,181.79407745,164.14,164.05,3.27407745]
[1752631023080,181.79407745,164.14,164.06,6.0942]
[1752631023384,0.03954624,164.11,164.06,6.0942]
[1752631023579,0.03954624,164.11,164.07,6.094]
[1752631023874,0.03954624,164.11,164.05,3.27407745]
[1752631024279,0.03954624,164.11,164.09,3.27407745]
[1752631024578,0.03954624,164.11,164.02,526.9]
[1752631024579,0.03954624,164.11,164.07,3.27407745]
[1752631024969,6.13244624,164.11,164.07,9.36807745]
[1752631025169,0.03954624,164.11,164.07,6.094]
[1752631025576,6.13214624,164.11,164.07,6.094]
[1752631026180,6.13214624,164.11,164.08,6.0937]
[1752631026474,6.13214624,164.11,164.05,3.27407745]
[1752631026880,6.13214624,164.11,164.02,526.9]
[1752631026881,0.03954624,164.11,164.02,526.9]
[1752631027075,3.27407745,164.09,164.01,3.27407745]
[1752631027475,6.0947,164.06,164.02,6.0957]
[1752631028078,6.0947,164.06,164.03,6.0955]
[1752631028282,6.13317472,164.07,164.01,3.27407745]
[1752631029084,6.13317472,164.07,164.03,6.0954]
[1752631029287,6.13317472,164.07,164.01,3.27407745]
[1752631029785,6.0945,164.06,164.03,6.0953]
[1752631030380,6.0949,164.05,164.02,6.0959]
[1752631031683,6.0954,164.04,163.96,178.38]
[1752631031891,3.27407745,164.06,163.96,181.65407745]
[1752631032281,6.0958,164.03,163.99,6.0971]
[1752631032588,6.13464975,164.03,163.96,181.65407745]
[1752631032788,6.13464975,164.03,163.99,6.0968]
[1752631033389,6.0961,164.02,163.99,6.0968]
[1752631034382,0.03884975,164.03,164.0,6.0966]
[1752631034989,0.03884975,164.03,163.96,181.65407745]
[1752631035189,3.27407745,164.1,164.01,3.27407745]
[1752631035389,6.094,164.08,164.04,6.0951]
[1752631035585,3.27407745,164.1,164.01,3.27407745]
[1752631036284,6.0941,164.07,164.02,6.0956]
[1752631036484,3.27407745,164.08,164.04,0.04347142]
[1752631036885,3.27407745,164.08,163.99,3.27407745]
[1752631037192,3.27407745,164.08,164.04,0.04328548]
[1752631037390,6.0948,164.06,164.04,0.04328548]
[1752631038492,6.0948,164.05,164.04,0.04328548]
[1752631040690,191.0,164.07,164.04,0.04328548]
[1752631042389,6.0947,164.06,164.04,0.04328548]
[1752631042589,191.0,164.07,164.04,0.04328548]
[1752631042989,191.0,164.07,164.04,6.13828548]
[1752631043297,191.0,164.07,164.04,3.31736293]
[1752631043794,191.0,164.07,164.05,6.0948]
[1752631043994,897.96,164.12,164.04,3.31736293]
[1752631044195,897.96,164.12,164.06,3.27407745]
[1752631044396,371.12,164.12,164.06,3.27407745]
[1752631044602,6.0932,164.1,164.06,3.27407745]
[1752631044988,6.0932,164.1,164.07,0.03932088]
[1752631045297,6.0932,164.1,164.07,6.13342088]
[1752631045997,6.0934,164.09,164.07,0.03932088]
[1752631046998,6.0931,164.1,164.07,0.03932088]
[1752631047696,191.0,164.12,164.07,0.03932088]
[1752631047896,21.09033087,164.16,164.08,3.27407745]
[1752631048102,21.09033087,164.16,164.1,3.27407745]
[1752631048300,6.0915,164.14,164.11,6.0926]
[1752631048596,21.09033087,164.16,164.11,6.13711437]
[1752631048900,6.0914,164.15,164.12,6.0921]
[1752631049102,6.0914,164.15,164.11,0.04451437]
[1752631049302,6.0915,164.14,164.11,0.04451437]
[1752631049601,21.09033087,164.16,164.11,6.13691437]
[1752631050101,6.0913,164.15,164.11,6.13691437]
[1752631050601,6.0913,164.15,164.12,6.0922]
[1752631051101,21.09033087,164.16,164.11,0.04451437]
[1752631051400,0.04589625,164.15,164.11,0.04451437]
[1752631052102,0.04589625,164.15,164.12,6.0922]
[1752631052299,6.13709625,164.15,164.12,6.0922]
[1752631053708,0.04589625,164.15,164.13,6.0918]
[1752631054002,0.04589625,164.15,164.12,3.27407745]
[1752631054810,6.0915,164.14,164.12,3.27407745]
[1752631055402,0.04589625,164.15,164.12,3.27407745]
[1752631055403,6.0919,164.13,164.12,3.27407745]
[1752631055709,0.04589625,164.15,164.12,3.27407745]
[1752631056106,6.13719625,164.15,164.12,3.27407745]
[1752631056808,6.13719625,164.15,164.12,9.36627745]
[1752631057104,6.13719625,164.15,164.12,6.0922]
[1752631058209,6.13719625,164.15,164.11,6.13701437]
[1752631059410,0.04589625,164.15,164.12,6.0921]
[1752631059606,0.04589625,164.15,164.11,0.04451437]
[1752631059806,0.04589625,164.15,164.12,3.27407745]
[1752631060010,0.04589625,164.15,164.13,6.0919]
[1752631060211,0.04589625,164.15,164.12,3.27407745]
[1752631060809,0.04589625,164.15,164.13,6.0919]
[1752631061112,0.04589625,164.15,164.12,3.27407745]
[1752631061615,0.04589625,164.15,164.13,6.0919]
[1752631062712,0.04589625,164.15,164.12,3.27407745]
[1752631063814,0.04589625,164.15,164.13,6.0919]
[1752631064612,0.04589625,164.15,164.14,6.0915]
[1752631064913,0.04589625,164.15,164.12,3.27407745]
[1752631065514,0.04589625,164.15,164.13,6.0917]
[1752631066806,0.04589625,164.15,164.14,9.36557745]
[1752631069317,191.0,164.22,164.14,3.27407745]
[1752631069518,6.0891,164.21,164.14,3.27407745]
[1752631069718,6.0891,164.21,164.17,6.0902]
[1752631069910,6.0891,164.21,164.16,3.27407745]
[1752631070110,197.0887,164.22,164.18,6.0898]
[1752631070517,191.0,164.22,164.18,6.0898]
[1752631070910,197.0886,164.22,164.18,6.0898]
[1752631071311,191.0,164.22,164.18,6.0898]
[1752631072220,6.089,164.21,164.18,6.0898]
[1752631073021,191.0,164.22,164.17,0.04109502]
[1752631073022,6.0895,164.2,164.17,0.04109502]
[1752631073220,191.0,164.22,164.17,0.04109502]
[1752631073722,6.0891,164.21,164.17,0.04109502]
[1752631074122,6.0891,164.21,164.17,6.13139502]
[1752631074326,191.0,164.25,164.17,0.04109502]
[1752631074623,182.79407745,164.27,164.2,9.36307745]
[1752631074818,182.79407745,164.27,164.2,3.27407745]
[1752631075218,182.79407745,164.27,164.11,12.1851]
[1752631075517,3.27407745,164.25,164.22,0.04647878]
[1752631075720,3.27407745,164.25,164.19,6.0895]
[1752631076015,3.27407745,164.25,164.22,0.04087105]
[1752631076414,6.0884,164.23,164.22,0.04087105]
[1752631078721,6.0892,164.21,164.17,6.0902]
[1752631078924,0.03953075,164.24,164.17,6.0902]
[1752631079225,3.27407745,164.25,164.17,6.0902]
[1752631079928,3.27407745,164.25,164.18,6.09]
[1752631080128,3.27407745,164.25,164.19,0.04372319]
[1752631080831,3.27407745,164.23,164.19,0.04372319]
[1752631081030,3.27407745,164.23,164.08,3.27407745]
[1752631081031,10.16205092,164.23,164.12,3.27407745]
[1752631081232,3.27407745,164.2,164.11,3.27407745]
[1752631081433,6.0902,164.18,164.14,6.0915]
[1752631081633,3.27407745,164.21,164.13,3.27407745]
[1752631082031,6.0899,164.19,164.15,6.0909]
[1752631082232,6.12837799,164.19,164.15,6.0909]
[1752631082431,0.03847799,164.19,164.16,6.0904]
[1752631084230,6.12827799,164.19,164.16,6.0904]
[1752631084835,0.03847799,164.19,164.16,6.0904]
[1752631085032,0.03847799,164.19,164.16,6.13618161]
[1752631087634,0.03847799,164.19,164.16,0.04578161]
[1752631088335,0.03847799,164.19,164.16,6.13618161]
[1752631088531,6.12817799,164.19,164.16,6.13618161]
[1752631089037,10.20052891,164.19,164.16,0.04578161]
[1752631089634,10.20052891,164.19,164.16,6.13648161]
[1752631090335,0.03847799,164.19,164.16,6.13648161]
[1752631090536,6.0901,164.18,164.16,0.04578161]
[1752631090933,10.20052891,164.19,164.16,0.04578161]
[1752631091131,16.25205092,164.18,164.16,0.04578161]
[1752631091734,6.0904,164.17,164.16,0.04578161]
[1752631092034,16.25245092,164.17,164.16,0.04578161]
[1752631092235,0.03847799,164.19,164.16,0.04578161]
[1752631092426,6.0903,164.18,164.16,0.04578161]
[1752631092629,0.03847799,164.19,164.16,0.04578161]
[1752631092835,194.27407745,164.18,164.16,0.00203552]
[1752631093036,6.0904,164.17,164.16,0.00203552]
[1752631095432,9.36447745,164.17,164.16,0.00203552]
[1752631097133,16.74853451,164.17,164.06,6.0942]
[1752631097434,370.64,164.18,164.04,526.74]
[1752631097435,10.20037961,164.14,164.04,530.01407745]
[1752631097637,6.0922,164.12,164.08,6.0937]
[1752631097836,194.27407745,164.13,164.04,530.01407745]
[1752631098240,6.093,164.1,164.06,6.0943]
[1752631098433,6.13236748,164.1,164.04,526.74]
[1752631098638,6.13236748,164.1,164.05,9.36857745]
[1752631099233,6.13236748,164.1,164.06,6.0944]
[1752631099439,0.03936748,164.1,164.06,6.0944]
[1752631099639,0.03936748,164.1,164.05,3.27407745]
[1752631100136,0.03936748,164.1,164.06,6.0943]